bitfinex/quotes_ETHUSD_20220123
["timestamp","ask_amount","ask_price","bid_price","bid_amount"]
[1642969480628,0.1656,2413.6,2412.6,0.80151117]
[1642969481029,1.02807923,2413.2,2413.0,1.13023269]
[1642969481229,0.1656,2413.7,2413.0,1.13023269]
[1642969481432,0.21640919,2413.9,2413.0,1.13023269]
[1642969481635,0.21640919,2413.9,2413.2,0.01208719]
[1642969481885,0.1656,2414.4,2413.2,0.01208719]
[1642969482077,0.1656,2414.7,2414.4,1.14505148]
[1642969482279,0.1656,2414.7,2413.8,1.10478102]
[1642969482280,1.13234649,2414.8,2413.8,1.11747862]
[1642969482678,0.96674649,2414.8,2413.8,1.11747862]
[1642969483077,1.4328605,2414.6,2413.8,1.11747862]
[1642969483282,0.98204619,2414.4,2413.8,1.11747862]
[1642969483683,0.98204619,2414.4,2413.3,3.1244]
[1642969483884,0.98204619,2414.4,2413.1,4.9103]
[1642969484083,0.1656,2414.3,2413.1,4.9103]
[1642969484482,0.1656,2414.3,2414.0,1.0593512]
[1642969484886,0.1656,2414.3,2413.8,1.50350553]
[1642969485088,0.1656,2414.3,2413.1,4.9103]
[1642969485744,0.1656,2414.3,2413.2,3.54169663]
[1642969485946,0.98204619,2414.4,2413.7,1.42277244]
[1642969486144,0.98204619,2414.4,2413.1,4.9103]
[1642969486946,0.98204619,2414.4,2413.1,4.8603]
[1642969487143,0.93204619,2414.4,2413.1,4.8603]
[1642969487346,1.43990531,2414.2,2413.7,1.13642035]
[1642969487946,1.06555061,2414.0,2413.7,1.13642035]
[1642969488153,1.43990531,2414.2,2413.7,1.13642035]
[1642969489152,1.43990531,2414.2,2413.5,1.44007618]
[1642969489974,0.1656,2414.7,2413.5,1.44007618]
[1642969490284,0.1656,2414.7,2413.6,2.23370573]
[1642969490477,1.0299298,2414.8,2413.8,0.197]
[1642969490877,1.00828829,2414.8,2414.2,0.01223529]
[1642969491079,0.538,2416.0,2414.2,0.01223529]
[1642969491080,1.27059461,2415.3,2414.6,1.37811993]
[1642969491282,0.1656,2415.2,2414.6,1.37811993]
[1642969491477,1.27059461,2415.3,2414.2,0.01223529]
[1642969491684,0.1656,2415.2,2414.1,0.11655846]
[1642969492081,0.498,2415.1,2413.8,1.2134]
[1642969492278,1.15781704,2414.0,2413.8,1.2134]
[1642969492679,1.16640316,2413.9,2413.2,2.36839777]
[1642969492884,1.16640316,2413.9,2413.1,3.617]
[1642969493130,0.1656,2413.8,2413.1,3.617]
[1642969493327,1.16115873,2413.3,2412.9,0.88085923]
[1642969493925,2.47970056,2413.3,2412.9,0.88085923]
[1642969494328,2.47970056,2413.3,2412.8,0.25475843]
[1642969494927,0.1656,2413.8,2412.8,0.25475843]
[1642969495227,0.1656,2413.8,2412.5,7.43]
[1642969495930,0.1656,2413.8,2412.5,9.98077117]
[1642969496128,1.43564387,2413.5,2413.2,1.0110877]
[1642969496329,0.1656,2413.8,2413.2,1.0110877]
[1642969496628,0.1656,2414.0,2413.2,1.0110877]
[1642969497271,0.13619,2413.6,2413.2,1.0110877]
[1642969498678,1.11725219,2413.7,2413.2,2.46960373]
[1642969498679,0.13619,2413.7,2413.2,2.46960373]
[1642969498881,0.13619,2413.7,2413.3,0.19398]
[1642969499077,0.13619,2413.7,2413.3,0.35958]
[1642969499277,0.13619,2413.7,2413.3,1.19398]
[1642969499577,1.14383229,2414.5,2414.4,1.05460317]
[1642969499779,1.14383229,2414.5,2414.1,1.51760092]
[1642969499979,1.41256355,2414.8,2414.1,1.51760092]
[1642969500378,0.1656,2415.1,2414.1,1.51760092]
[1642969501028,0.82551469,2415.0,2414.6,1.02992104]
[1642969501237,0.1656,2415.1,2414.6,1.02992104]
[1642969501427,1.89769891,2415.5,2414.8,1.10276539]
[1642969501629,0.25475843,2415.5,2414.8,1.10276539]
[1642969501829,0.1656,2415.4,2414.8,1.10276539]
[1642969502034,0.1656,2415.4,2414.6,1.02992104]
[1642969502233,0.89770883,2415.0,2414.1,0.01202616]
[1642969502438,0.1656,2414.9,2413.9,3.6007]
[1642969503037,0.1656,2415.4,2414.0,27.86229456]
[1642969503238,0.1656,2415.4,2414.1,0.24643848]
[1642969503435,0.1656,2415.4,2414.4,0.0126447]
[1642969503733,0.1656,2415.4,2414.9,0.93945734]
[1642969503734,1.03430931,2415.3,2414.9,0.93945734]
[1642969504134,1.03430931,2415.3,2414.9,2.03510053]
[1642969504373,1.03430931,2415.3,2414.9,1.09564319]
[1642969504575,1.03430931,2415.3,2414.6,3.9883]
[1642969504778,1.03430931,2415.3,2414.1,5.0227]
[1642969504975,0.1656,2415.2,2414.1,1.1556]
[1642969505573,0.83666006,2414.6,2414.3,1.14104626]
[1642969505780,0.83666006,2414.6,2414.2,1.39580474]
[1642969506980,0.83666006,2414.6,2414.3,0.83206761]
[1642969507181,0.1656,2415.4,2414.3,0.83206761]
[1642969507980,0.1656,2415.4,2414.2,1.39580474]
[1642969508222,1.39976871,2415.1,2414.2,1.39580474]
[1642969508430,0.1656,2415.0,2414.2,1.39580474]
[1642969509024,0.8502038,2414.8,2414.4,1.10012679]
[1642969509222,0.8502038,2414.8,2414.2,1.39580474]
[1642969509822,0.8502038,2414.8,2414.0,1.1375]
[1642969510026,0.8502038,2414.8,2413.7,4.30876999]
[1642969510227,1.39976871,2415.1,2413.9,0.83149306]
[1642969510228,0.82805992,2414.2,2413.9,0.83149306]
[1642969510429,0.82805992,2414.2,2413.7,0.57416999]
[1642969510630,0.1656,2414.1,2413.7,0.57416999]
[1642969511027,1.5329715,2414.0,2413.7,0.57416999]
[1642969511426,0.1656,2414.1,2413.8,1.07174024]
[1642969511624,0.82805992,2414.2,2413.8,1.07174024]
[1642969512570,0.82805992,2414.2,2413.9,1.31093897]
[1642969512969,1.35621935,2414.6,2413.9,1.31093897]
[1642969513372,0.1656,2415.0,2413.9,1.31093897]
[1642969513773,0.1656,2415.1,2413.9,1.31093897]
[1642969513974,1.03559681,2414.5,2413.9,1.31093897]
[1642969514579,2.4319,2415.2,2413.9,1.31093897]
[1642969514580,0.1656,2414.7,2414.2,1.04889358]
[1642969514778,0.1656,2415.1,2414.2,1.04889358]
[1642969514977,0.75275843,2415.5,2414.0,3.6601]
[1642969514978,0.1656,2415.2,2414.1,2.56939756]
[1642969516022,0.89715338,2414.7,2414.3,2.54057384]
[1642969516630,0.89715338,2414.7,2414.3,1.54226987]
[1642969517027,0.89715338,2414.7,2414.0,3.6601]
[1642969517226,0.89715338,2414.7,2413.8,0.01222249]
[1642969517624,0.1656,2414.9,2413.8,3.49193286]
[1642969517826,0.1656,2414.9,2413.8,27.59193286]
[1642969518026,0.1656,2415.1,2413.8,27.59193286]
[1642969518427,0.1656,2415.1,2413.8,0.01222249]
[1642969518629,0.92766501,2414.5,2414.1,1.06871025]
[1642969519380,0.92766501,2414.5,2413.8,0.01222249]
[1642969519681,0.1656,2414.4,2413.7,0.40856999]
[1642969520281,0.1656,2414.4,2413.9,1.17059761]
[1642969520482,0.92766501,2414.5,2413.9,1.17059761]
[1642969520881,0.92766501,2414.5,2413.7,1.75443768]
[1642969521883,0.1656,2414.6,2413.7,1.75443768]
[1642969522186,1.1463,2415.2,2414.2,0.03996725]
[1642969522385,1.1463,2415.2,2414.1,1.37101817]
[1642969522587,0.1656,2415.1,2414.1,1.37101817]
[1642969522784,0.1656,2415.1,2414.3,0.86954324]
[1642969522785,1.08746658,2414.7,2414.3,0.86954324]
[1642969523441,1.08746658,2414.7,2414.1,1.37101817]
[1642969524440,1.08746658,2414.7,2414.1,2.48732989]
[1642969524742,1.08746658,2414.7,2414.1,1.37101817]
[1642969527173,1.08746658,2414.7,2414.1,2.34858554]
[1642969527376,1.08746658,2414.7,2414.2,0.04911681]
[1642969528379,0.1656,2415.2,2414.2,2.61593655]
[1642969528583,5.0793,2415.3,2414.2,2.56681974]
[1642969528781,0.1656,2415.2,2414.1,2.34858554]
[1642969529380,1.52356604,2415.0,2414.1,2.34858554]
[1642969529582,6.30645732,2415.3,2415.2,61.10288506]
[1642969529780,2.27998509,2415.3,2415.2,61.10288506]
[1642969529980,2.41231509,2415.3,2415.2,61.10288506]
[1642969530183,2.41231509,2415.3,2413.9,0.01217606]
[1642969530184,9.40135601,2414.9,2413.9,0.01217606]
[1642969530382,9.40135601,2414.9,2413.7,0.40856999]
[1642969530383,0.13233,2414.8,2413.7,0.40856999]
[1642969530634,2.76443,2414.8,2413.7,0.40856999]
[1642969530826,0.01259942,2414.6,2413.7,0.40856999]
[1642969531023,0.14492942,2414.6,2413.7,0.40856999]
[1642969531227,0.13233,2414.4,2413.7,0.40856999]
[1642969532225,0.498,2414.5,2413.7,0.40856999]
[1642969532226,0.13233,2414.2,2413.7,0.40856999]
[1642969532423,0.88313,2414.2,2413.7,0.40856999]
[1642969532624,0.04957,2414.1,2413.7,0.40856999]
[1642969536989,0.1819,2414.1,2413.7,0.40856999]
[1642969537184,0.13233,2413.9,2413.7,0.40856999]
[1642969537483,7.8319,2413.8,2413.7,0.40856999]
[1642969537682,8.4319,2413.8,2413.7,6.999e-05]
[1642969537882,0.13233,2413.6,2412.5,0.86958696]
[1642969538134,0.13233,2412.6,2412.5,0.86958696]
[1642969538334,0.13233,2412.6,2412.0,8.5841]
[1642969538539,0.13233,2412.6,2412.0,7.43]
[1642969539436,0.13233,2412.6,2412.5,1.13615195]
[1642969539840,0.02164151,2413.6,2413.1,1.31900308]
[1642969540239,4.483,2414.2,2413.2,2.66416811]
[1642969540436,0.04957,2414.4,2413.5,1.42214911]
[1642969540834,0.92925485,2414.0,2413.5,1.42214911]
[1642969541035,0.92925485,2414.0,2412.9,1.2069]
[1642969541739,0.83965879,2413.6,2412.9,1.2069]
[1642969541979,0.83965879,2413.6,2413.3,0.93728573]
[1642969542186,0.83965879,2413.6,2413.2,1.17293855]
[1642969542583,1.84756,2414.5,2413.2,1.17293855]
[1642969542784,0.84756,2414.5,2413.2,1.17293855]
[1642969542984,1.84756,2414.5,2413.2,1.17293855]
[1642969543182,1.84756,2414.5,2413.3,3.9616]
[1642969543983,0.84756,2414.5,2413.3,3.9616]
[1642969544186,1.05984181,2413.9,2413.6,1.00685135]
[1642969544585,1.05984181,2413.9,2413.2,1.17293855]
[1642969545648,0.04959,2414.3,2413.2,1.03322338]
[1642969546242,0.04959,2414.3,2413.3,2.66419114]
[1642969546439,0.04961,2414.4,2413.3,2.66419114]
[1642969546651,0.04963,2414.6,2414.3,1.04203562]
[1642969546844,1.1371,2415.0,2414.3,1.04203562]
[1642969547042,0.08968,2415.1,2414.3,1.04203562]
[1642969547243,0.04,2415.1,2414.3,1.04203562]
[1642969547448,0.04,2415.1,2413.8,3.98114465]
[1642969547449,0.04,2415.1,2413.8,1.2325]
[1642969547647,0.04,2415.1,2413.4,1.2136]
[1642969547648,0.04973,2415.0,2413.4,1.2136]
[1642969547845,0.04975,2414.8,2413.4,1.2136]
[1642969548442,0.91463683,2413.9,2413.6,2.41548393]
[1642969548643,0.91463683,2413.9,2413.1,1.1656]
[1642969548844,0.91463683,2413.9,2413.1,1.0]
[1642969549041,0.04965,2414.6,2413.0,1.01224611]
[1642969549243,0.04965,2414.6,2413.1,0.19398]
[1642969549478,0.04965,2414.6,2413.0,1.01224611]
[1642969549678,2.0,2413.9,2413.5,1.52982842]
[1642969550277,1.01440726,2413.8,2413.5,1.06159179]
[1642969550478,1.01440726,2413.8,2413.1,0.19398]
[1642969550678,2.0,2413.9,2413.1,0.19398]
[1642969551181,2.0,2413.9,2412.9,4.7953]
[1642969551380,3.2104,2413.9,2412.9,4.7953]
[1642969551779,1.0554733,2413.2,2412.9,5.84216554]
[1642969551978,1.0554733,2413.2,2412.9,1.04686554]
[1642969552584,0.04941,2413.8,2412.9,1.04686554]
[1642969553730,0.95323536,2413.3,2412.9,1.04686554]
[1642969554128,0.04941,2413.8,2412.9,1.04686554]
[1642969554328,2.0,2413.9,2413.0,1.22961089]
[1642969554728,2.0,2413.9,2413.0,1.17961089]
[1642969554928,2.0,2413.9,2412.9,1.04686554]
[1642969555329,0.84611247,2413.4,2412.9,1.04686554]
[1642969555529,0.04968,2413.8,2412.9,1.04686554]
[1642969556731,1.11707168,2413.5,2412.9,1.04686554]
[1642969556978,1.11707168,2413.5,2413.3,1.00692693]
[1642969557176,0.04968,2413.8,2413.3,1.00692693]
[1642969558283,0.92848379,2413.6,2413.3,1.00692693]
[1642969558683,0.04968,2413.8,2413.3,1.00692693]
[1642969559285,0.04968,2413.8,2412.8,1.1356344]
[1642969560290,0.04968,2413.8,2413.7,1.09658498]
[1642969560736,2.0,2413.9,2413.7,2.45413513]
[1642969565377,2.0,2413.9,2413.7,2.75413513]
[1642969565585,2.0,2413.9,2413.8,6.1]
[1642969566378,2.0,2413.9,2413.8,6.59398]
[1642969566578,0.04938,2414.7,2414.6,1.4254569]
[1642969566781,0.04957,2414.8,2414.0,4.7777]
[1642969566982,0.04957,2414.8,2414.0,2.1732]
[1642969567180,0.04957,2414.8,2414.0,1.1732]
[1642969567377,0.04957,2414.8,2414.0,2.1732]
[1642969567782,0.04957,2414.8,2414.5,1.09077421]
[1642969567979,0.04957,2414.8,2414.0,2.1732]
[1642969569034,9.40135601,2414.9,2414.2,24.1]
[1642969569236,9.40135601,2414.9,2414.3,2.86857116]
[1642969569437,9.40135601,2414.9,2414.4,0.04018198]
[1642969569641,9.40135601,2414.9,2414.5,1.32026715]
[1642969570036,9.40135601,2414.9,2414.5,26.42026715]
[1642969570236,9.40135601,2414.9,2414.5,2.32026715]
[1642969570636,9.40135601,2414.9,2414.6,24.1]
[1642969571239,5.601e-05,2414.9,2414.7,25.1]
[1642969571439,5.601e-05,2414.9,2414.7,26.0214]
[1642969571871,0.04,2415.1,2414.9,24.1]
[1642969571872,0.00015601,2415.1,2414.9,24.1]
[1642969572972,0.00015601,2415.1,2415.0,1.0]
[1642969573578,0.00015601,2415.1,2415.0,4.6222]
[1642969573782,0.00015601,2415.1,2415.0,1.0]
[1642969573979,0.00015601,2415.1,2414.7,1.9214]
[1642969574181,0.00015601,2415.1,2414.6,1.1656]
[1642969574381,0.00015601,2415.1,2414.6,1.3]
[1642969574880,0.00015601,2415.1,2414.6,1.0]
[1642969575732,0.00015601,2415.1,2414.7,0.99492399]
[1642969576334,0.00015601,2415.1,2414.6,1.0]
[1642969576537,0.00015601,2415.1,2414.6,1.3]
[1642969578739,0.00015601,2415.1,2414.6,1.0]
[1642969578940,0.00015601,2415.1,2414.5,3.7857]
[1642969579376,0.00015601,2415.1,2414.6,1.0]
[1642969580176,0.00015601,2415.1,2414.5,3.7857]
[1642969580177,0.60247126,2415.1,2414.5,3.7857]
[1642969580379,0.60247126,2415.1,2414.3,3.975]
[1642969580580,0.60247126,2415.1,2414.4,1.0]
[1642969580980,0.60247126,2415.1,2414.3,1.7417]
[1642969581182,0.00015601,2415.1,2414.7,1.29917288]
[1642969581378,0.00015601,2415.1,2414.3,1.7417]
[1642969583529,0.00015601,2415.1,2414.3,1.1417]
[1642969583736,0.85015101,2415.0,2414.3,1.1417]
[1642969583933,0.85015101,2415.0,2414.7,2.22881696]
[1642969584132,0.00015601,2415.1,2414.7,2.22881696]
[1642969584331,0.00015601,2415.1,2414.3,5.0881]
[1642969585733,0.00015601,2415.1,2414.8,0.82378574]
[1642969585935,0.00015601,2415.1,2414.3,5.0881]
[1642969586135,0.00015601,2415.1,2414.3,1.5484]
[1642969586351,0.00015601,2415.1,2414.4,28.373707]
[1642969586539,0.00015601,2415.1,2414.5,0.42885726]
[1642969586738,0.00015601,2415.1,2414.9,0.01271611]
[1642969586978,0.00015601,2415.1,2414.9,25.63191611]
[1642969587180,0.96858183,2416.0,2414.9,25.93191611]
[1642969587380,0.04,2416.1,2415.4,1.3667553]
[1642969588384,1.11464178,2416.0,2415.8,1.05143634]
[1642969588781,0.04,2416.1,2415.8,1.05143634]
[1642969589481,0.04,2416.1,2415.9,1.12401337]
[1642969589683,0.04,2416.1,2415.9,0.74767648]
[1642969592336,0.04,2416.1,2415.9,0.69767648]
[1642969594573,0.04,2416.1,2415.9,1.59257648]
[1642969594775,0.04,2416.1,2415.9,2.59257648]
[1642969595175,0.04,2416.1,2415.9,3.11527648]
[1642969596978,0.04,2416.1,2415.9,2.81527648]
[1642969597178,0.04,2416.1,2415.9,2.59257648]
[1642969598937,0.0001,2416.1,2416.0,0.597]
[1642969599136,0.04,2416.3,2416.1,3.4]
[1642969599343,0.0001,2416.3,2416.2,6.19398]
[1642969599540,0.08959,2416.8,2416.3,6.34081935]
[1642969599541,0.04,2416.8,2416.3,6.34081935]
[1642969599740,0.04,2416.8,2416.4,3.95015487]
[1642969599939,0.04,2416.8,2416.5,24.697]
[1642969600141,0.04,2416.8,2416.6,25.1]
[1642969600340,0.00270695,2417.9,2416.8,4.25]
[1642969600341,0.97619437,2417.8,2416.8,4.25]
[1642969600542,0.92662437,2417.8,2416.9,1.0]
[1642969600741,0.92662437,2417.8,2416.9,2.4535]
[1642969600938,0.78244528,2417.4,2416.9,1.4535]
[1642969601141,0.78244528,2417.4,2416.9,0.8565]
[1642969601984,0.04961,2417.9,2416.7,2.36008855]
[1642969601985,0.92662437,2417.0,2416.7,2.36008855]
[1642969602178,0.92662437,2417.0,2416.4,1.329]
[1642969602481,0.97625437,2417.0,2416.4,0.1653]
[1642969603079,0.92625437,2417.0,2416.4,0.1653]
[1642969603481,0.92625437,2417.0,2416.6,0.9089278]
[1642969603684,0.92625437,2417.0,2416.6,2.15169735]
[1642969604082,0.92625437,2417.0,2416.6,1.24276955]
[1642969604682,0.87662437,2417.0,2416.6,1.24276955]
[1642969606939,0.82662437,2417.0,2416.6,1.24276955]
[1642969607541,0.82662437,2417.0,2416.6,1.19276955]
[1642969610693,0.82662437,2417.0,2416.2,3.7042]
[1642969610895,0.82662437,2417.0,2415.9,1.2437]
[1642969610896,0.04999611,2416.9,2415.9,1.2437]
[1642969611096,0.04959,2416.8,2415.9,4.9551]
[1642969611295,0.04959,2416.9,2415.9,4.9551]
[1642969611895,0.78244528,2416.5,2416.2,1.15853226]
[1642969612300,0.04961,2416.4,2416.2,1.15853226]
[1642969613128,0.73205528,2416.5,2415.9,4.9551]
[1642969613335,0.73205528,2416.5,2415.5,3.9544]
[1642969613533,0.73205528,2416.5,2415.5,3.9895]
[1642969614434,0.73205528,2416.5,2416.2,1.10047166]
[1642969614634,1.1728,2417.0,2416.2,1.10047166]
[1642969614839,0.637,2417.1,2415.6,1.1355]
[1642969615035,0.937,2417.1,2415.6,1.1355]
[1642969615238,0.01283845,2416.8,2415.2,2.51763268]
[1642969615437,0.597,2416.7,2415.2,6.39043268]
[1642969615635,0.597,2416.7,2415.3,1.0]
[1642969615843,0.92755356,2416.3,2416.0,1.07619264]
[1642969616444,0.92755356,2416.3,2415.3,1.0]
[1642969617497,0.92755356,2416.3,2416.0,0.84743286]
[1642969617695,0.597,2416.5,2416.0,0.84743286]
[1642969617993,0.597,2416.7,2416.0,0.84743286]
[1642969618794,1.13668031,2416.4,2416.0,0.84743286]
[1642969620393,1.13668031,2416.4,2415.2,3.8728]
[1642969620632,1.73368031,2416.4,2415.2,3.8728]
[1642969620929,2.03368031,2416.4,2415.0,1.1641]
[1642969621128,5.94164784,2416.4,2415.0,1.1641]
[1642969621329,2.33368031,2416.4,2414.9,3.93730186]
[1642969621529,0.42199934,2415.6,2415.3,0.97585391]
[1642969621927,0.42199934,2415.6,2415.0,1.42214371]
[1642969622131,0.42199934,2415.6,2414.6,8.9656]
[1642969622331,0.42199934,2415.6,2414.6,5.0579]
[1642969622537,0.42199934,2415.6,2414.3,4.05688]
[1642969622734,0.42199934,2415.6,2414.3,4.01917324]
[1642969622932,0.42199934,2415.6,2415.0,0.90343798]
[1642969623133,1.2133,2415.8,2415.4,1.01034085]
[1642969623339,3.7376,2416.2,2415.7,1.52092392]
[1642969623537,0.06641127,2416.3,2415.7,1.52092392]
[1642969623538,0.05351695,2416.3,2415.7,1.52092392]
[1642969623738,0.00270695,2416.3,2415.7,1.52092392]
[1642969623935,4.5195,2416.7,2416.1,1.09481274]
[1642969624136,0.9741148,2416.4,2415.2,5.0096]
[1642969624384,0.9741148,2416.4,2415.2,5.1441]
[1642969624579,4.5195,2416.7,2415.2,5.1441]
[1642969624779,4.5195,2416.7,2415.2,7.72339957]
[1642969625184,4.5195,2416.7,2415.9,1.23865703]
[1642969625382,0.597,2416.7,2415.9,1.23865703]
[1642969625583,1.15640357,2416.3,2416.0,1.11391583]
[1642969626187,0.05081,2416.6,2416.0,1.11391583]
[1642969626390,0.05081,2416.6,2415.4,3.81922269]
[1642969626589,0.05081,2416.6,2415.4,1.1393]
[1642969627590,1.1105546,2416.5,2416.0,1.47344166]
[1642969627793,0.05081,2416.6,2416.2,0.87841061]
[1642969628234,0.05081,2416.6,2416.0,1.47344166]
[1642969628438,0.05081,2416.6,2415.4,1.1393]
[1642969628639,1.1492,2416.9,2415.7,0.01291483]
[1642969629040,1.1492,2416.9,2415.7,24.11291483]
[1642969629242,0.31639994,2417.1,2415.9,0.04832974]
[1642969629440,0.04,2417.1,2416.9,1.34320856]
[1642969629639,0.04,2417.1,2417.0,0.92456389]
[1642969629843,0.04,2417.1,2417.0,0.62684133]
[1642969630444,0.04,2417.1,2417.0,0.3959322]
[1642969630741,0.03851003,2417.1,2417.0,0.3959322]
[1642969631344,0.03851003,2417.1,2417.0,1.2234322]
[1642969632796,0.03851003,2417.1,2417.0,2.8204322]
[1642969633187,5.0362,2418.2,2418.0,1.0910379]
[1642969633392,0.05081,2418.4,2418.0,1.012]
[1642969633589,1.07447539,2418.1,2418.0,1.012]
[1642969634189,16.25606549,2418.6,2418.0,1.012]
[1642969634388,8.73525549,2418.6,2418.2,1.42692403]
[1642969634990,8.73525549,2418.7,2418.2,1.42692403]
[1642969635188,0.87215108,2418.3,2418.2,1.42692403]
[1642969635389,1.10696425,2418.3,2418.2,1.42692403]
[1642969635643,0.27481317,2418.8,2418.2,1.42692403]
[1642969635837,0.31562317,2418.8,2418.2,1.42692403]
[1642969636043,0.31562317,2418.8,2418.6,1.52474841]
[1642969636044,0.27481317,2418.8,2418.6,1.52474841]
[1642969636241,0.27481317,2418.8,2418.6,2.58634841]
[1642969636839,1.33998189,2418.7,2418.6,1.69330769]
[1642969637239,1.33998189,2418.7,2418.6,1.0616]
[1642969637442,1.33998189,2418.7,2417.9,1.2138]
[1642969637643,1.35215252,2418.7,2417.4,0.20706]
[1642969637842,1.35215252,2418.7,2417.2,11.6826]
[1642969637843,1.35215252,2418.7,2417.2,10.6826]
[1642969638249,0.23481317,2417.9,2417.7,1.0705815]
[1642969638442,0.23481317,2417.9,2417.7,2.18898778]
[1642969639245,0.23481317,2417.9,2417.3,1.1816]
[1642969639885,0.23481317,2417.9,2417.3,2.1816]
[1642969640288,0.23481317,2417.9,2417.4,0.8372356]
[1642969640486,0.23481317,2417.9,2417.8,1.15885861]
[1642969640687,0.23481317,2418.2,2417.3,2.1816]
[1642969640894,0.23481317,2418.2,2417.3,1.0]
[1642969641585,0.23481317,2418.2,2417.7,1.0153589]
[1642969645047,0.85453364,2417.9,2417.6,1.44760138]
[1642969645250,0.23481317,2417.8,2417.2,4.9835]
[1642969645448,0.23481317,2417.8,2417.0,1.38006]
[1642969645646,0.01285281,2418.4,2417.0,0.20706]
[1642969645850,0.01285281,2418.4,2417.1,1.2314]
[1642969646893,0.23481317,2417.9,2417.4,1.20417275]
[1642969649001,0.23481317,2417.9,2417.5,1.16022684]
[1642969649202,0.23481317,2417.9,2417.1,1.2314]
[1642969649410,1.03341317,2417.9,2417.1,1.2314]
[1642969650204,1.03341317,2417.9,2417.4,0.98650068]
[1642969653643,0.23481317,2417.5,2417.4,0.98650068]
[1642969653843,0.23481317,2417.5,2417.0,3.6621]
[1642969654048,0.27562317,2418.2,2416.8,0.00104226]
[1642969654245,1.46162317,2418.2,2416.8,0.00104226]
[1642969654983,1.16604687,2418.0,2417.7,1.04776501]
[1642969655183,0.23481317,2417.9,2416.9,2.65953553]
[1642969655385,0.23481317,2417.9,2416.8,3.93394226]
[1642969656387,0.23481317,2417.9,2417.5,0.85751372]
[1642969658661,0.23481317,2417.9,2417.1,1.41240329]
[1642969658861,0.23481317,2417.9,2416.9,0.00104224]
[1642969659063,0.23481317,2417.7,2416.9,0.00104224]
[1642969659269,0.23481317,2417.5,2416.9,0.00104224]
[1642969659460,0.27562317,2417.6,2416.9,0.00104224]
[1642969659664,0.00010301,2416.9,2416.6,1.192]
[1642969659963,0.00010301,2416.9,2416.6,0.00104223]
[1642969666536,0.23491618,2416.9,2416.7,0.04372232]
[1642969666735,0.23491618,2416.9,2416.7,0.00104223]
[1642969667540,7.69081,2416.8,2416.7,0.00104223]
[1642969667737,8.80822317,2416.8,2416.7,0.00104223]
[1642969667938,8.89507498,2416.8,2416.7,0.00104223]
[1642969668139,8.89507498,2416.8,2416.7,0.00024223]
[1642969668338,9.49207498,2416.8,2416.7,0.00024223]
[1642969668539,11.09207498,2416.8,2416.7,0.00024223]
[1642969668737,11.09207498,2416.8,2415.3,3.9701]
[1642969668738,0.23481317,2416.6,2415.3,3.9701]
[1642969668939,0.83181317,2416.6,2415.3,3.97114223]
[1642969669141,0.04081,2416.5,2415.3,3.97114223]
[1642969669387,0.23481317,2415.8,2415.6,1.11629313]
[1642969669592,1.00321317,2415.8,2415.6,1.11733536]
[1642969669787,1.00321317,2415.8,2415.6,0.00104223]
[1642969670592,0.23481317,2415.7,2414.5,0.37256]
[1642969670790,0.23481317,2415.7,2415.1,0.97856167]
[1642969670791,0.86300644,2415.5,2415.1,0.97856167]
[1642969670991,0.23481317,2415.4,2415.1,0.97856167]
[1642969671190,0.23481317,2415.4,2414.5,0.20706]
[1642969671391,0.23481317,2415.4,2414.7,1.14824048]
[1642969672194,0.23481317,2415.4,2415.0,0.93668475]
[1642969675636,0.23481317,2415.5,2415.0,0.93668475]
[1642969676039,0.23481317,2415.5,2414.5,3.886]
[1642969676040,0.27562317,2415.5,2414.5,3.886]
[1642969676239,0.23481317,2415.5,2414.5,3.886]
[1642969676539,0.23481317,2415.5,2414.3,0.01272765]
[1642969676742,0.83181317,2415.5,2414.1,3.9708]
[1642969676996,0.04081,2415.4,2414.1,3.9708]
[1642969677195,0.23481317,2415.1,2414.9,1.03743408]
[1642969677994,0.23481317,2415.1,2414.4,1.49751875]
[1642969678200,1.32181317,2415.1,2414.4,1.49751875]
[1642969679000,1.32181317,2415.1,2414.7,0.98025733]
[1642969680400,2.3483681,2415.1,2414.7,0.98025733]
[1642969680666,0.04081,2415.0,2414.1,3.9708]
[1642969681057,0.23481317,2414.8,2413.9,1.2159]
[1642969681255,0.27562317,2414.8,2413.7,5.18414009]
[1642969681654,0.27562317,2414.8,2414.6,1.08179993]
[1642969682060,0.23481317,2414.8,2414.6,1.08179993]
[1642969682258,0.23481317,2415.1,2414.6,1.08179993]
[1642969682662,0.27562317,2415.1,2414.6,1.08179993]
[1642969683556,0.27562317,2415.1,2415.0,1.11519933]
[1642969683762,0.23481317,2415.1,2415.0,1.11519933]
[1642969687102,0.23481317,2415.6,2415.0,1.11519933]
[1642969690747,0.23481317,2415.6,2415.4,1.12740306]
[1642969691550,0.04081,2415.5,2414.6,1.1629]
[1642969692193,0.41382314,2415.8,2414.6,2.1629]
[1642969692390,0.41382314,2415.8,2414.6,1.1629]
[1642969692592,0.23481317,2415.5,2415.3,0.86393895]
[1642969692792,0.23481317,2415.5,2414.4,0.0122919]
[1642969693003,0.23481317,2415.5,2414.0,4.8523]
[1642969693004,1.82056498,2415.5,2414.0,4.8523]
[1642969693394,2.82056498,2415.5,2414.0,4.8523]
[1642969693600,0.05350614,2415.4,2414.0,3.6713]
[1642969693799,0.23481317,2414.6,2414.4,0.9015053]
[1642969693997,1.33381317,2414.6,2414.4,0.9015053]
[1642969694399,1.33381317,2414.6,2414.4,0.90053953]
[1642969694596,1.33288592,2414.6,2414.4,0.90053953]
[1642969695834,0.23388592,2414.6,2414.4,0.90053953]
[1642969697338,0.23388592,2414.9,2414.4,0.90053953]
[1642969699991,0.23388592,2414.5,2414.0,3.6713]
[1642969700194,0.23388592,2414.5,2413.8,0.012744]
[1642969700395,1.06858592,2414.5,2413.6,8.6124]
[1642969701092,1.06858592,2414.5,2413.6,4.7976]
[1642969702094,1.06858592,2414.5,2414.4,0.97009136]
[1642969702395,0.04081,2414.7,2414.4,0.97009136]
[1642969703238,0.27469592,2414.7,2414.4,0.97009136]
[1642969703445,0.27469592,2414.7,2413.6,8.4916]
[1642969703640,1.45059592,2414.7,2413.6,8.4916]
[1642969703841,2.13444773,2414.7,2413.6,3.6619]
[1642969704041,3.13444773,2414.7,2413.6,3.6619]
[1642969704438,0.23388592,2413.9,2413.7,0.91270465]
[1642969704638,1.19918592,2413.9,2413.7,0.91270465]
[1642969706439,0.04081,2413.8,2413.1,0.1656]
[1642969706650,0.27469592,2413.8,2412.9,3.8394]
[1642969707085,0.23388592,2413.6,2412.9,3.8394]